[Event "Titled Tuesday Blitz March 29 Late 2022"]
[White "Ibarra Jerez, Jose Carlos"]
[Black "Caruana, Fabiano"]
[WhiteFideId "2226332"]
[BlackFideId "2020009"]
[WhiteElo "2626"]
[BlackElo "2744"]
[Result "0-1"]
[Round "05"]
[TimeControl "180+1"]
[Date "2022.03.29"]
[WhiteClock "0:00:09"]
[BlackClock "0:00:18"]

1. e4 {[%clk 0:03:00]}  e5 {[%clk 0:02:59]} 2. Nf3 {[%clk 0:03:00]}  Nc6 {[%clk 0:03:00]} 3. Bb5 {[%clk 0:02:56]}  a6 {[%clk 0:02:59]} 4. Bxc6 {[%clk 0:02:56]}  dxc6 {[%clk 0:02:59]} 5. O-O {[%clk 0:02:56]}  Qf6 {[%clk 0:02:59]} 6. d4 {[%clk 0:02:56]}  exd4 {[%clk 0:02:59]} 7. Bg5 {[%clk 0:02:56]}  Qd6 {[%clk 0:02:59]} 8. Nxd4 {[%clk 0:02:53]}  Be7 {[%clk 0:03:00]} 9. Be3 {[%clk 0:02:46]}  Nf6 {[%clk 0:02:52]} 10. f3 {[%clk 0:02:40]}  O-O {[%clk 0:02:45]} 11. Nd2 {[%clk 0:02:39]}  Qd8 {[%clk 0:02:32]} 12. Nc4 {[%clk 0:02:32]}  c5 {[%clk 0:02:25]} 13. Nb3 {[%clk 0:02:31]}  b6 {[%clk 0:02:25]} 14. Qe2 {[%clk 0:02:15]}  Be6 {[%clk 0:02:23]} 15. Rfd1 {[%clk 0:02:12]}  Qe8 {[%clk 0:02:23]} 16. a4 {[%clk 0:02:07]}  Nd7 {[%clk 0:02:09]} 17. Bf4 {[%clk 0:02:00]}  Rc8 {[%clk 0:02:08]} 18. Ne3 {[%clk 0:01:57]}  Bf6 {[%clk 0:01:57]} 19. Qxa6 {[%clk 0:01:25]}  Bxb2 {[%clk 0:01:53]} 20. Rab1 {[%clk 0:01:26]}  Be5 {[%clk 0:01:45]} 21. Bxe5 {[%clk 0:01:22]}  Nxe5 {[%clk 0:01:46]} 22. a5 {[%clk 0:01:14]}  Qc6 {[%clk 0:01:28]} 23. Nd5 {[%clk 0:01:14]}  Bxd5 {[%clk 0:01:26]} 24. Rxd5 {[%clk 0:01:11]}  Ra8 {[%clk 0:01:17]} 25. Qe2 {[%clk 0:01:07]}  Rfe8 {[%clk 0:01:17]} 26. Rbd1 {[%clk 0:00:56]}  Ng6 {[%clk 0:01:00]} 27. Qd2 {[%clk 0:00:49]}  h6 {[%clk 0:00:38]} 28. axb6 {[%clk 0:00:47]}  cxb6 {[%clk 0:00:38]} 29. Rd6 {[%clk 0:00:47]}  Qc7 {[%clk 0:00:38]} 30. Rd7 {[%clk 0:00:46]}  Qe5 {[%clk 0:00:36]} 31. Qd5 {[%clk 0:00:31]}  Qxd5 {[%clk 0:00:34]} 32. R7xd5 {[%clk 0:00:30]}  Ra2 {[%clk 0:00:33]} 33. R5d2 {[%clk 0:00:24]}  Ne5 {[%clk 0:00:31]} 34. Kf2 {[%clk 0:00:14]}  Nc4 {[%clk 0:00:28]} 35. Re2 {[%clk 0:00:14]}  h5 {[%clk 0:00:18]} 36. Nc1 {[%clk 0:00:14]}  Ra1 {[%clk 0:00:18]} 37. Ree1 {[%clk 0:00:15]}  Na3 {[%clk 0:00:17]} 38. Rd2 {[%clk 0:00:11]}  h4 {[%clk 0:00:17]} 39. Red1 {[%clk 0:00:11]}  Nc4 {[%clk 0:00:17]} 40. Rd8 {[%clk 0:00:11]}  Rxd8 {[%clk 0:00:17]} 41. Rxd8+ {[%clk 0:00:11]}  Kh7 {[%clk 0:00:18]} 42. Nd3 {[%clk 0:00:12]}  Ra2 {[%clk 0:00:18]} 43. Ne1 {[%clk 0:00:12]}  Na3 {[%clk 0:00:18]} 44. Rd2 {[%clk 0:00:10]}  b5 {[%clk 0:00:19]} 45. Ke3 {[%clk 0:00:10]}  Nc4+ {[%clk 0:00:18]} 46. Kd3 {[%clk 0:00:09]}  Nxd2 {[%clk 0:00:19]} 47. Kxd2 {[%clk 0:00:09]}  b4 {[%clk 0:00:19]} 48. Nd3 {[%clk 0:00:09]}  b3 {[%clk 0:00:19]} 49. Kc3 {[%clk 0:00:07]}  Rxc2+ {[%clk 0:00:19]} 50. Kxb3 {[%clk 0:00:08]}  Rxg2 {[%clk 0:00:19]} 51. Nxc5 {[%clk 0:00:08]}  Rxh2 {[%clk 0:00:20]} 52. Nd3 {[%clk 0:00:09]}  Rh3 {[%clk 0:00:19]} 53. Ne5 {[%clk 0:00:09]}  f6 {[%clk 0:00:18]} 0-1


[Site "https://www.chess.com"]

[Event "Titled Tuesday Blitz March 29 Late 2022"]
[White "Iskusnyh, Sergei"]
[Black "Toncheva, Nadya"]
[WhiteFideId "4120027"]
[BlackFideId "2924056"]
[WhiteElo "2492"]
[BlackElo "1884"]
[Result "1/2-1/2"]
[Round "05"]
[TimeControl "180+1"]
[Date "2022.03.30"]
[WhiteClock "0:00:16"]
[BlackClock "0:00:20"]

1. d4 {[%clk 0:03:00]}  Nf6 {[%clk 0:02:58]} 2. c4 {[%clk 0:03:00]}  e6 {[%clk 0:02:58]} 3. g3 {[%clk 0:03:00]}  c5 {[%clk 0:02:58]} 4. Nf3 {[%clk 0:03:00]}  cxd4 {[%clk 0:02:58]} 5. Nxd4 {[%clk 0:03:01]}  a6 {[%clk 0:02:59]} 6. Bg2 {[%clk 0:03:00]}  Qc7 {[%clk 0:02:59]} 7. b3 {[%clk 0:02:44]}  Nc6 {[%clk 0:02:58]} 8. O-O {[%clk 0:02:40]}  b6 {[%clk 0:02:57]} 9. Bf4 {[%clk 0:02:30]}  e5 {[%clk 0:02:54]} 10. Nxc6 {[%clk 0:02:15]}  dxc6 {[%clk 0:02:52]} 11. Bxe5 {[%clk 0:01:47]}  Qxe5 {[%clk 0:02:51]} 12. Bxc6+ {[%clk 0:01:47]}  Bd7 {[%clk 0:02:51]} 13. Bxa8 {[%clk 0:01:48]}  Qxa1 {[%clk 0:02:51]} 14. Qd2 {[%clk 0:01:36]}  Qe5 {[%clk 0:02:45]} 15. Nc3 {[%clk 0:01:34]}  Bb4 {[%clk 0:02:39]} 16. Rc1 {[%clk 0:01:33]}  O-O {[%clk 0:02:35]} 17. Bf3 {[%clk 0:01:33]}  Bg4 {[%clk 0:02:24]} 18. Qd3 {[%clk 0:01:16]}  Bf5 {[%clk 0:02:19]} 19. e4 {[%clk 0:01:10]}  Bxc3 {[%clk 0:02:12]} 20. exf5 {[%clk 0:01:10]}  Bd4 {[%clk 0:02:11]} 21. Rd1 {[%clk 0:01:09]}  Bc5 {[%clk 0:02:12]} 22. Kg2 {[%clk 0:01:09]}  h5 {[%clk 0:02:06]} 23. h3 {[%clk 0:01:06]}  Re8 {[%clk 0:01:52]} 24. Rd2 {[%clk 0:01:05]}  Qe1 {[%clk 0:01:50]} 25. Qc2 {[%clk 0:00:55]}  Qa1 {[%clk 0:01:21]} 26. Rd1 {[%clk 0:00:50]}  Qe5 {[%clk 0:01:21]} 27. Rd2 {[%clk 0:00:50]}  h4 {[%clk 0:01:17]} 28. g4 {[%clk 0:00:41]}  Bd6 {[%clk 0:01:15]} 29. Kf1 {[%clk 0:00:40]}  Qh2 {[%clk 0:01:13]} 30. Bg2 {[%clk 0:00:38]}  Bb4 {[%clk 0:00:47]} 31. Re2 {[%clk 0:00:38]}  Rxe2 {[%clk 0:00:44]} 32. Qxe2 {[%clk 0:00:38]}  Qd6 {[%clk 0:00:44]} 33. g5 {[%clk 0:00:36]}  Nd7 {[%clk 0:00:37]} 34. Qe8+ {[%clk 0:00:35]}  Nf8 {[%clk 0:00:33]} 35. Bd5 {[%clk 0:00:35]}  Qe7 {[%clk 0:00:32]} 36. Qxe7 {[%clk 0:00:34]}  Bxe7 {[%clk 0:00:31]} 37. g6 {[%clk 0:00:34]}  Nd7 {[%clk 0:00:27]} 38. Bxf7+ {[%clk 0:00:33]}  Kf8 {[%clk 0:00:27]} 39. Ke2 {[%clk 0:00:33]}  Bd6 {[%clk 0:00:20]} 40. Ke3 {[%clk 0:00:29]}  Ke7 {[%clk 0:00:20]} 41. Ke4 {[%clk 0:00:25]}  Nf6+ {[%clk 0:00:20]} 42. Kd4 {[%clk 0:00:24]}  Bc5+ {[%clk 0:00:21]} 43. Kd3 {[%clk 0:00:24]}  Bxf2 {[%clk 0:00:21]} 44. b4 {[%clk 0:00:24]}  Kd6 {[%clk 0:00:20]} 45. Be6 {[%clk 0:00:21]}  a5 {[%clk 0:00:20]} 46. c5+ {[%clk 0:00:20]}  Kc6 {[%clk 0:00:18]} 47. cxb6 {[%clk 0:00:19]}  Kxb6 {[%clk 0:00:19]} 48. bxa5+ {[%clk 0:00:19]}  Kxa5 {[%clk 0:00:20]} 49. Kc4 {[%clk 0:00:19]}  Kb6 {[%clk 0:00:15]} 50. Bf7 {[%clk 0:00:17]}  Bc5 {[%clk 0:00:12]} 51. a4 {[%clk 0:00:16]}  Ne4 {[%clk 0:00:10]} 52. a5+ {[%clk 0:00:14]}  Kxa5 {[%clk 0:00:04]} 53. Bd5 {[%clk 0:00:14]}  Be7 {[%clk 0:00:01]} 54. Bxe4 {[%clk 0:00:13]}  Bf6 {[%clk 0:00:02]} 55. Kd5 {[%clk 0:00:14]}  Kb6 {[%clk 0:00:03]} 56. Ke6 {[%clk 0:00:14]}  Kc7 {[%clk 0:00:04]} 57. Bf3 {[%clk 0:00:14]}  Kd8 {[%clk 0:00:04]} 58. Kf7 {[%clk 0:00:14]}  Kd7 {[%clk 0:00:04]} 59. Bg4 {[%clk 0:00:14]}  Kd6 {[%clk 0:00:05]} 60. Kf8 {[%clk 0:00:14]}  Ke5 {[%clk 0:00:06]} 61. Kf7 {[%clk 0:00:14]}  Kf4 {[%clk 0:00:07]} 62. Ke6 {[%clk 0:00:14]}  Kg3 {[%clk 0:00:07]} 63. Kd5 {[%clk 0:00:14]}  Kf4 {[%clk 0:00:08]} 64. Kc4 {[%clk 0:00:14]}  Kg5 {[%clk 0:00:09]} 65. Kd3 {[%clk 0:00:14]}  Kh6 {[%clk 0:00:10]} 66. Ke2 {[%clk 0:00:15]}  Kg5 {[%clk 0:00:11]} 67. Kf3 {[%clk 0:00:15]}  Kh6 {[%clk 0:00:12]} 68. Kf4 {[%clk 0:00:15]}  Bg5+ {[%clk 0:00:11]} 69. Kf3 {[%clk 0:00:14]}  Bf6 {[%clk 0:00:12]} 70. Ke3 {[%clk 0:00:15]}  Bg5+ {[%clk 0:00:13]} 71. Ke4 {[%clk 0:00:15]}  Bf6 {[%clk 0:00:14]} 72. Bf3 {[%clk 0:00:15]}  Bg5 {[%clk 0:00:15]} 73. Be2 {[%clk 0:00:15]}  Bf6 {[%clk 0:00:16]} 74. Kf4 {[%clk 0:00:15]}  Bg5+ {[%clk 0:00:16]} 75. Kg4 {[%clk 0:00:16]}  Bf6 {[%clk 0:00:17]} 76. Bc4 {[%clk 0:00:16]}  Bg5 {[%clk 0:00:17]} 77. Bd5 {[%clk 0:00:14]}  Bf6 {[%clk 0:00:18]} 78. Be6 {[%clk 0:00:14]}  Bg5 {[%clk 0:00:19]} 79. Bf7 {[%clk 0:00:14]}  Bf6 {[%clk 0:00:20]} 80. Be6 {[%clk 0:00:14]}  Bg5 {[%clk 0:00:20]} 81. Bf7 {[%clk 0:00:15]}  Bf6 {[%clk 0:00:20]} 82. Be6 {[%clk 0:00:16]} 1/2-1/2


[Site "https://www.chess.com"]

[Event "Titled Tuesday Blitz March 29 Late 2022"]
[White "Janaszak, Dawid"]
[Black "Tarigan, Gilbert Elroy"]
[WhiteFideId "1119206"]
[BlackFideId "7108133"]
[WhiteElo "2199"]
[BlackElo "1908"]
[Result "1-0"]
[Round "05"]
[TimeControl "180+1"]
[Date "2022.03.29"]
[WhiteClock "0:00:07"]
[BlackClock "0:00:03"]

1. e4 {[%clk 0:03:00]}  c5 {[%clk 0:02:57]} 2. Ne2 {[%clk 0:02:58]}  e6 {[%clk 0:02:57]} 3. Nbc3 {[%clk 0:02:56]}  Nc6 {[%clk 0:02:55]} 4. g3 {[%clk 0:02:56]}  h5 {[%clk 0:02:46]} 5. h3 {[%clk 0:02:49]}  b6 {[%clk 0:02:39]} 6. Bg2 {[%clk 0:02:48]}  Bb7 {[%clk 0:02:40]} 7. d4 {[%clk 0:02:46]}  cxd4 {[%clk 0:02:40]} 8. Nxd4 {[%clk 0:02:47]}  Nxd4 {[%clk 0:02:32]} 9. Qxd4 {[%clk 0:02:48]}  Ne7 {[%clk 0:02:29]} 10. Nb5 {[%clk 0:02:35]}  Nc6 {[%clk 0:02:24]} 11. Nd6+ {[%clk 0:02:35]}  Bxd6 {[%clk 0:02:24]} 12. Qxd6 {[%clk 0:02:36]}  Qe7 {[%clk 0:02:22]} 13. Bf4 {[%clk 0:02:18]}  e5 {[%clk 0:02:19]} 14. Qxe7+ {[%clk 0:02:17]}  Kxe7 {[%clk 0:02:20]} 15. Bg5+ {[%clk 0:02:17]}  f6 {[%clk 0:02:18]} 16. Be3 {[%clk 0:02:14]}  Nb4 {[%clk 0:02:10]} 17. Kd1 {[%clk 0:01:43]}  h4 {[%clk 0:01:58]} 18. a3 {[%clk 0:01:35]}  Na6 {[%clk 0:01:54]} 19. g4 {[%clk 0:01:29]}  Rac8 {[%clk 0:01:46]} 20. b4 {[%clk 0:01:03]}  Rhd8 {[%clk 0:01:16]} 21. Rc1 {[%clk 0:00:55]}  Rc4 {[%clk 0:01:07]} 22. f3 {[%clk 0:00:53]}  d5 {[%clk 0:01:01]} 23. exd5 {[%clk 0:00:47]}  Bxd5 {[%clk 0:01:01]} 24. Ke2 {[%clk 0:00:45]}  Nc7 {[%clk 0:00:45]} 25. Rhd1 {[%clk 0:00:32]}  Nb5 {[%clk 0:00:40]} 26. Rd3 {[%clk 0:00:24]}  Rc3 {[%clk 0:00:31]} 27. Rxc3 {[%clk 0:00:18]}  Nxc3+ {[%clk 0:00:31]} 28. Kf2 {[%clk 0:00:18]}  Bc6 {[%clk 0:00:25]} 29. Bf1 {[%clk 0:00:16]}  g5 {[%clk 0:00:14]} 30. Bd3 {[%clk 0:00:16]}  Bb5 {[%clk 0:00:09]} 31. Bxb5 {[%clk 0:00:10]}  Nxb5 {[%clk 0:00:09]} 32. c4 {[%clk 0:00:09]}  Nxa3 {[%clk 0:00:05]} 33. c5 {[%clk 0:00:10]}  Nb5 {[%clk 0:00:04]} 34. cxb6 {[%clk 0:00:09]}  axb6 {[%clk 0:00:05]} 35. Rc6 {[%clk 0:00:09]}  Rd6 {[%clk 0:00:04]} 36. Rxb6 {[%clk 0:00:09]}  Rxb6 {[%clk 0:00:04]} 37. Bxb6 {[%clk 0:00:10]}  Ke6 {[%clk 0:00:04]} 38. Bd8 {[%clk 0:00:09]}  Nd6 {[%clk 0:00:05]} 39. Bb6 {[%clk 0:00:09]}  Kd5 {[%clk 0:00:05]} 40. Bd8 {[%clk 0:00:09]}  Ke6 {[%clk 0:00:05]} 41. Bb6 {[%clk 0:00:09]}  Nb7 {[%clk 0:00:05]} 42. Ke3 {[%clk 0:00:09]}  Kd5 {[%clk 0:00:05]} 43. b5 {[%clk 0:00:09]}  Nd6 {[%clk 0:00:06]} 44. Bd8 {[%clk 0:00:09]}  Ne8 {[%clk 0:00:03]} 45. b6 {[%clk 0:00:09]}  Kc6 {[%clk 0:00:03]} 46. Ke4 {[%clk 0:00:09]}  Nd6+ {[%clk 0:00:03]} 47. Ke3 {[%clk 0:00:09]}  Ne8 {[%clk 0:00:04]} 48. Ke4 {[%clk 0:00:09]}  Kd7 {[%clk 0:00:04]} 49. Bc7 {[%clk 0:00:08]}  Ke6 {[%clk 0:00:03]} 50. b7 {[%clk 0:00:07]} 1-0


[Site "https://www.chess.com"]

[Event "Titled Tuesday Blitz March 29 Late 2022"]
[White "Jaracz, Pawel"]
[Black "Indjic, Aleksandar"]
[WhiteFideId "1102222"]
[BlackFideId "911925"]
[WhiteElo "2429"]
[BlackElo "2616"]
[Result "0-1"]
[Round "05"]
[TimeControl "180+1"]
[Date "2022.03.29"]
[WhiteClock "0:01:22"]
[BlackClock "0:01:18"]

1. e4 {[%clk 0:03:00]}  c6 {[%clk 0:02:55]} 2. d4 {[%clk 0:03:00]}  d5 {[%clk 0:02:56]} 3. e5 {[%clk 0:02:57]}  c5 {[%clk 0:02:55]} 4. dxc5 {[%clk 0:02:56]}  e6 {[%clk 0:02:56]} 5. a3 {[%clk 0:02:56]}  Bxc5 {[%clk 0:02:55]} 6. Bd3 {[%clk 0:02:52]}  Nd7 {[%clk 0:02:48]} 7. Nf3 {[%clk 0:02:50]}  Ne7 {[%clk 0:02:48]} 8. b4 {[%clk 0:02:49]}  Bb6 {[%clk 0:02:47]} 9. O-O {[%clk 0:02:47]}  a5 {[%clk 0:02:46]} 10. Bb2 {[%clk 0:02:43]}  Ng6 {[%clk 0:02:45]} 11. Re1 {[%clk 0:02:39]}  Qe7 {[%clk 0:02:29]} 12. Nc3 {[%clk 0:02:30]}  O-O {[%clk 0:02:25]} 13. Nb5 {[%clk 0:02:25]}  Nf4 {[%clk 0:02:14]} 14. Bf1 {[%clk 0:02:22]}  axb4 {[%clk 0:02:05]} 15. axb4 {[%clk 0:02:22]}  Rxa1 {[%clk 0:02:04]} 16. Qxa1 {[%clk 0:02:20]}  f6 {[%clk 0:02:05]} 17. exf6 {[%clk 0:02:17]}  Nxf6 {[%clk 0:01:59]} 18. c4 {[%clk 0:02:10]}  dxc4 {[%clk 0:01:48]} 19. Bxc4 {[%clk 0:02:10]}  Qxb4 {[%clk 0:01:44]} 20. Nd6 {[%clk 0:01:56]}  Qxd6 {[%clk 0:01:42]} 21. Be5 {[%clk 0:01:45]}  Qc5 {[%clk 0:01:41]} 22. Qa2 {[%clk 0:01:36]}  N6d5 {[%clk 0:01:27]} 23. Nd4 {[%clk 0:01:22]}  Ng6 {[%clk 0:01:18]} 0-1


[Site "https://www.chess.com"]

[Event "Titled Tuesday Blitz March 29 Late 2022"]
[White "Jensen, Matthew R"]
[Black "Van den Dikkenberg, Erik"]
[WhiteFideId "2018110"]
[BlackFideId "1005880"]
[WhiteElo "2282"]
[BlackElo "2118"]
[Result "1-0"]
[Round "05"]
[TimeControl "180+1"]
[Date "2022.03.30"]
[WhiteClock "0:00:16"]
[BlackClock "0:00:21"]

1. d4 {[%clk 0:03:00]}  Nf6 {[%clk 0:02:59]} 2. c4 {[%clk 0:03:00]}  e6 {[%clk 0:02:59]} 3. Nc3 {[%clk 0:02:58]}  Bb4 {[%clk 0:02:58]} 4. Nf3 {[%clk 0:02:58]}  O-O {[%clk 0:02:58]} 5. Bg5 {[%clk 0:02:58]}  c5 {[%clk 0:02:57]} 6. e3 {[%clk 0:02:56]}  h6 {[%clk 0:02:56]} 7. Bxf6 {[%clk 0:02:56]}  Qxf6 {[%clk 0:02:55]} 8. Rc1 {[%clk 0:02:56]}  Nc6 {[%clk 0:02:54]} 9. Be2 {[%clk 0:02:53]}  d6 {[%clk 0:02:45]} 10. O-O {[%clk 0:02:53]}  Bxc3 {[%clk 0:02:39]} 11. Rxc3 {[%clk 0:02:49]}  b6 {[%clk 0:02:39]} 12. dxc5 {[%clk 0:02:19]}  dxc5 {[%clk 0:02:38]} 13. Nd2 {[%clk 0:02:10]}  Ne5 {[%clk 0:02:33]} 14. Ne4 {[%clk 0:02:04]}  Qg6 {[%clk 0:02:32]} 15. Ng3 {[%clk 0:01:58]}  Bb7 {[%clk 0:02:29]} 16. f4 {[%clk 0:01:44]}  Rad8 {[%clk 0:02:08]} 17. Qc1 {[%clk 0:01:34]}  Nd3 {[%clk 0:02:01]} 18. Qc2 {[%clk 0:01:19]}  Nb4 {[%clk 0:01:33]} 19. Qxg6 {[%clk 0:01:18]}  fxg6 {[%clk 0:01:34]} 20. a3 {[%clk 0:01:19]}  Nc6 {[%clk 0:01:28]} 21. Rd3 {[%clk 0:01:18]}  Na5 {[%clk 0:01:24]} 22. Rfd1 {[%clk 0:01:14]}  Rxd3 {[%clk 0:01:19]} 23. Rxd3 {[%clk 0:01:04]}  Nxc4 {[%clk 0:01:11]} 24. Rd7 {[%clk 0:01:05]}  Na5 {[%clk 0:01:10]} 25. b4 {[%clk 0:01:04]}  Bc8 {[%clk 0:01:10]} 26. Rxa7 {[%clk 0:01:02]}  cxb4 {[%clk 0:01:09]} 27. axb4 {[%clk 0:01:00]}  Nc6 {[%clk 0:01:09]} 28. Rc7 {[%clk 0:00:39]}  Nxb4 {[%clk 0:01:08]} 29. Bc4 {[%clk 0:00:40]}  Nd5 {[%clk 0:01:03]} 30. Bxd5 {[%clk 0:00:31]}  exd5 {[%clk 0:01:03]} 31. Ne2 {[%clk 0:00:30]}  Ba6 {[%clk 0:00:57]} 32. Nd4 {[%clk 0:00:29]}  Bc4 {[%clk 0:00:38]} 33. Ne6 {[%clk 0:00:26]}  Rf7 {[%clk 0:00:38]} 34. Rc8+ {[%clk 0:00:26]}  Kh7 {[%clk 0:00:38]} 35. Nf8+ {[%clk 0:00:26]}  Kg8 {[%clk 0:00:37]} 36. Nxg6+ {[%clk 0:00:26]}  Kh7 {[%clk 0:00:37]} 37. Ne5 {[%clk 0:00:26]}  Ra7 {[%clk 0:00:28]} 38. Nxc4 {[%clk 0:00:24]}  dxc4 {[%clk 0:00:28]} 39. Rxc4 {[%clk 0:00:23]}  Ra2 {[%clk 0:00:28]} 40. Rb4 {[%clk 0:00:22]}  Ra3 {[%clk 0:00:28]} 41. Kf2 {[%clk 0:00:21]}  Ra2+ {[%clk 0:00:28]} 42. Kf3 {[%clk 0:00:21]}  Ra6 {[%clk 0:00:28]} 43. g4 {[%clk 0:00:20]}  Kg6 {[%clk 0:00:28]} 44. h4 {[%clk 0:00:20]}  h5 {[%clk 0:00:28]} 45. f5+ {[%clk 0:00:21]}  Kf6 {[%clk 0:00:28]} 46. e4 {[%clk 0:00:12]}  Ra3+ {[%clk 0:00:27]} 47. Kf4 {[%clk 0:00:12]}  Ra6 {[%clk 0:00:27]} 48. e5+ {[%clk 0:00:13]}  Kf7 {[%clk 0:00:27]} 49. g5 {[%clk 0:00:13]}  Ke7 {[%clk 0:00:26]} 50. g6 {[%clk 0:00:13]}  Kd7 {[%clk 0:00:26]} 51. Kg5 {[%clk 0:00:13]}  Ra5 {[%clk 0:00:25]} 52. Rxb6 {[%clk 0:00:12]}  Rxe5 {[%clk 0:00:26]} 53. Rb7+ {[%clk 0:00:13]}  Ke8 {[%clk 0:00:25]} 54. Rxg7 {[%clk 0:00:14]}  Kf8 {[%clk 0:00:26]} 55. Rf7+ {[%clk 0:00:14]}  Kg8 {[%clk 0:00:26]} 56. Ra7 {[%clk 0:00:14]}  Re4 {[%clk 0:00:25]} 57. Kf6 {[%clk 0:00:14]}  Re8 {[%clk 0:00:21]} 58. Rg7+ {[%clk 0:00:14]}  Kf8 {[%clk 0:00:21]} 59. Rh7 {[%clk 0:00:15]}  Kg8 {[%clk 0:00:21]} 60. Rxh5 {[%clk 0:00:15]}  Rf8+ {[%clk 0:00:21]} 61. Kg5 {[%clk 0:00:15]}  Re8 {[%clk 0:00:20]} 62. Rh7 {[%clk 0:00:15]}  Rf8 {[%clk 0:00:20]} 63. Re7 {[%clk 0:00:15]}  Kh8 {[%clk 0:00:19]} 64. g7+ {[%clk 0:00:15]}  Kg8 {[%clk 0:00:20]} 65. gxf8=Q+ {[%clk 0:00:16]}  Kxf8 {[%clk 0:00:20]} 66. Ra7 {[%clk 0:00:16]}  Kg8 {[%clk 0:00:21]} 67. Kf6 {[%clk 0:00:16]}  Kf8 {[%clk 0:00:21]} 68. Ra8# {[%clk 0:00:16]} 1-0


[Site "https://www.chess.com"]

[Event "Titled Tuesday Blitz March 29 Late 2022"]
[White "Karttunen, Mika"]
[Black "Boyer, Mahel"]
[WhiteFideId "502081"]
[BlackFideId "45102422"]
[WhiteElo "2343"]
[BlackElo "2328"]
[Result "0-1"]
[Round "05"]
[TimeControl "180+1"]
[Date "2022.03.29"]
[WhiteClock "0:00:17"]
[BlackClock "0:00:27"]

1. d4 {[%clk 0:03:00]}  Nf6 {[%clk 0:02:57]} 2. c4 {[%clk 0:03:00]}  c5 {[%clk 0:02:57]} 3. d5 {[%clk 0:02:59]}  e6 {[%clk 0:02:58]} 4. Nc3 {[%clk 0:02:58]}  exd5 {[%clk 0:02:58]} 5. cxd5 {[%clk 0:02:59]}  g6 {[%clk 0:02:58]} 6. e4 {[%clk 0:02:59]}  d6 {[%clk 0:02:54]} 7. Nge2 {[%clk 0:02:58]}  Bg7 {[%clk 0:02:52]} 8. Ng3 {[%clk 0:02:58]}  O-O {[%clk 0:02:53]} 9. Be2 {[%clk 0:02:58]}  b6 {[%clk 0:02:54]} 10. O-O {[%clk 0:02:58]}  Ba6 {[%clk 0:02:55]} 11. Re1 {[%clk 0:02:46]}  Bxe2 {[%clk 0:02:52]} 12. Rxe2 {[%clk 0:02:46]}  a6 {[%clk 0:02:53]} 13. a4 {[%clk 0:02:46]}  Nbd7 {[%clk 0:02:54]} 14. h3 {[%clk 0:02:43]}  Re8 {[%clk 0:02:54]} 15. f4 {[%clk 0:02:43]}  h5 {[%clk 0:02:51]} 16. Nh1 {[%clk 0:02:23]}  b5 {[%clk 0:02:32]} 17. axb5 {[%clk 0:02:24]}  axb5 {[%clk 0:02:33]} 18. Rxa8 {[%clk 0:02:24]}  Qxa8 {[%clk 0:02:34]} 19. Nxb5 {[%clk 0:02:22]}  Rxe4 {[%clk 0:02:27]} 20. Nxd6 {[%clk 0:01:40]}  Rxe2 {[%clk 0:02:24]} 21. Qxe2 {[%clk 0:01:41]}  Qxd5 {[%clk 0:02:24]} 22. Ne8 {[%clk 0:01:38]}  Ne4 {[%clk 0:02:21]} 23. Nxg7 {[%clk 0:01:35]}  Kxg7 {[%clk 0:02:20]} 24. Nf2 {[%clk 0:01:34]}  Ng3 {[%clk 0:02:15]} 25. Qe1 {[%clk 0:01:30]}  Nf6 {[%clk 0:02:10]} 26. Be3 {[%clk 0:01:29]}  Qc4 {[%clk 0:02:08]} 27. Kh2 {[%clk 0:01:15]}  h4 {[%clk 0:01:37]} 28. Bd2 {[%clk 0:01:12]}  Nd5 {[%clk 0:01:29]} 29. Ng4 {[%clk 0:00:56]}  Nf1+ {[%clk 0:01:23]} 30. Kg1 {[%clk 0:00:56]}  Nxd2 {[%clk 0:01:24]} 31. Qxd2 {[%clk 0:00:56]}  Nxf4 {[%clk 0:01:22]} 32. Kf2 {[%clk 0:00:29]}  Qe4 {[%clk 0:01:18]} 33. Qc3+ {[%clk 0:00:28]}  Qd4+ {[%clk 0:01:05]} 34. Kf3 {[%clk 0:00:29]}  Qxc3+ {[%clk 0:01:01]} 35. bxc3 {[%clk 0:00:29]}  Nd5 {[%clk 0:01:00]} 36. c4 {[%clk 0:00:29]}  Nb6 {[%clk 0:00:59]} 37. Ne3 {[%clk 0:00:29]}  f5 {[%clk 0:00:59]} 38. g3 {[%clk 0:00:22]}  hxg3 {[%clk 0:00:56]} 39. Kxg3 {[%clk 0:00:23]}  Kf6 {[%clk 0:00:56]} 40. h4 {[%clk 0:00:23]}  Ke5 {[%clk 0:00:56]} 41. Kf3 {[%clk 0:00:24]}  Kd4 {[%clk 0:00:55]} 42. h5 {[%clk 0:00:24]}  gxh5 {[%clk 0:00:56]} 43. Nxf5+ {[%clk 0:00:24]}  Kxc4 {[%clk 0:00:57]} 44. Ng3 {[%clk 0:00:25]}  h4 {[%clk 0:00:55]} 45. Nf5 {[%clk 0:00:24]}  h3 {[%clk 0:00:56]} 46. Kg3 {[%clk 0:00:24]}  Kd3 {[%clk 0:00:56]} 47. Nd6 {[%clk 0:00:24]}  Nc4 {[%clk 0:00:53]} 48. Nb5 {[%clk 0:00:23]}  Ne3 {[%clk 0:00:32]} 49. Kxh3 {[%clk 0:00:24]}  c4 {[%clk 0:00:32]} 50. Kg3 {[%clk 0:00:23]}  Nf5+ {[%clk 0:00:33]} 51. Kf4 {[%clk 0:00:22]}  Nd4 {[%clk 0:00:33]} 52. Na3 {[%clk 0:00:20]}  c3 {[%clk 0:00:34]} 53. Ke5 {[%clk 0:00:19]}  Nb5 {[%clk 0:00:32]} 54. Nxb5 {[%clk 0:00:15]}  c2 {[%clk 0:00:33]} 55. Nd4 {[%clk 0:00:11]}  c1=Q {[%clk 0:00:32]} 56. Nf5 {[%clk 0:00:12]}  Qc3+ {[%clk 0:00:32]} 57. Kf4 {[%clk 0:00:12]}  Qc4+ {[%clk 0:00:32]} 58. Kg5 {[%clk 0:00:13]}  Qc5 {[%clk 0:00:31]} 59. Kf4 {[%clk 0:00:13]}  Qa5 {[%clk 0:00:31]} 60. Ng3 {[%clk 0:00:13]}  Qc7+ {[%clk 0:00:30]} 61. Kf3 {[%clk 0:00:13]}  Qf7+ {[%clk 0:00:30]} 62. Kg4 {[%clk 0:00:13]}  Kd4 {[%clk 0:00:28]} 63. Nf5+ {[%clk 0:00:14]}  Ke5 {[%clk 0:00:29]} 64. Ng3 {[%clk 0:00:15]}  Qf4+ {[%clk 0:00:29]} 65. Kh3 {[%clk 0:00:15]}  Qf3 {[%clk 0:00:29]} 66. Kh4 {[%clk 0:00:15]}  Kf6 {[%clk 0:00:29]} 67. Nh5+ {[%clk 0:00:16]}  Kg6 {[%clk 0:00:29]} 68. Ng3 {[%clk 0:00:17]}  Qf4+ {[%clk 0:00:26]} 69. Kh3 {[%clk 0:00:17]}  Kg5 {[%clk 0:00:27]} 0-1


[Site "https://www.chess.com"]